[Event "December 12 Late 2023"]
[Site "https://www.chess.com"]
[Date "2023.12.12"]
[Round "2"]
[White "Karacsonyi, Gellert"]
[Black "Diaz Garcia, Lianet"]
[Result "1-0"]
[Board "76"]
[TimeControl "180+1"]
[WhiteFideId "764620"]
[BlackFideId "3526747"]
[WhiteElo "2655"]
[BlackElo "2067"]
[WhiteTeam "HUN"]
[BlackTeam "CUB"]
[WhiteClock "0:00:04"]
[BlackClock "0:00:00"]

1. e4 {[%clk 0:02:57]}  c5 {[%clk 0:01:36]} 2. Nf3 {[%clk 0:02:56]}  Nc6 {[%clk 0:01:36]} 3. d4 {[%clk 0:02:56]}  cxd4 {[%clk 0:01:37]} 4. Nxd4 {[%clk 0:02:57]}  g6 {[%clk 0:01:37]} 5. Nc3 {[%clk 0:02:54]}  Bg7 {[%clk 0:01:37]} 6. Be3 {[%clk 0:02:55]}  Nf6 {[%clk 0:01:37]} 7. Bc4 {[%clk 0:02:55]}  O-O {[%clk 0:01:37]} 8. Bb3 {[%clk 0:02:56]}  d6 {[%clk 0:01:37]} 9. f3 {[%clk 0:02:56]}  Bd7 {[%clk 0:01:37]} 10. Qd2 {[%clk 0:02:57]}  Rc8 {[%clk 0:01:38]} 11. O-O-O {[%clk 0:02:57]}  Nxd4 {[%clk 0:01:37]} 12. Bxd4 {[%clk 0:02:58]}  b5 {[%clk 0:01:38]} 13. Nd5 {[%clk 0:02:58]}  Nxd5 {[%clk 0:01:35]} 14. Bxg7 {[%clk 0:02:58]}  Kxg7 {[%clk 0:01:35]} 15. exd5 {[%clk 0:02:59]}  a5 {[%clk 0:01:33]} 16. a3 {[%clk 0:02:20]}  Qc7 {[%clk 0:01:03]} 17. g4 {[%clk 0:02:15]}  b4 {[%clk 0:00:43]} 18. a4 {[%clk 0:02:07]}  e5 {[%clk 0:00:31]} 19. dxe6 {[%clk 0:01:39]}  Bxe6 {[%clk 0:00:31]} 20. Kb1 {[%clk 0:01:40]}  Bxb3 {[%clk 0:00:30]} 21. cxb3 {[%clk 0:01:41]}  Rfe8 {[%clk 0:00:16]} 22. h4 {[%clk 0:01:31]}  Qc6 {[%clk 0:00:14]} 23. h5 {[%clk 0:01:27]}  Qc7 {[%clk 0:00:14]} 24. hxg6 {[%clk 0:01:26]}  fxg6 {[%clk 0:00:11]} 25. Rh2 {[%clk 0:01:09]}  Re7 {[%clk 0:00:11]} 26. Rdh1 {[%clk 0:01:07]}  Kg8 {[%clk 0:00:11]} 27. Qd5+ {[%clk 0:01:07]}  Kh8 {[%clk 0:00:09]} 28. Qd4+ {[%clk 0:00:59]}  Kg8 {[%clk 0:00:08]} 29. Ka2 {[%clk 0:00:56]}  Qc5 {[%clk 0:00:08]} 30. Qf6 {[%clk 0:00:51]}  Qe5 {[%clk 0:00:08]} 31. Qh4 {[%clk 0:00:37]}  Rec7 {[%clk 0:00:07]} 32. Qf2 {[%clk 0:00:25]}  Rc2 {[%clk 0:00:06]} 33. Qxc2 {[%clk 0:00:25]}  Rxc2 {[%clk 0:00:06]} 34. Rxc2 {[%clk 0:00:26]}  Qd5 {[%clk 0:00:06]} 35. Rc8+ {[%clk 0:00:26]}  Kg7 {[%clk 0:00:06]} 36. Rc7+ {[%clk 0:00:06]}  Kf6 {[%clk 0:00:03]} 37. Rhxh7 {[%clk 0:00:06]}  Kg5 {[%clk 0:00:04]} 38. Rhf7 {[%clk 0:00:06]}  Qd4 {[%clk 0:00:03]} 39. Ra7 {[%clk 0:00:06]}  Qc5 {[%clk 0:00:03]} 40. Rfb7 {[%clk 0:00:05]}  Qe3 {[%clk 0:00:02]} 41. Rb5+ {[%clk 0:00:05]}  Kf4 {[%clk 0:00:02]} 42. Rf7+ {[%clk 0:00:05]}  Kg3 {[%clk 0:00:02]} 43. Rxa5 {[%clk 0:00:06]}  Kf2 {[%clk 0:00:02]} 44. Rb5 {[%clk 0:00:05]}  Ke1 {[%clk 0:00:00]} 45. Rxb4 {[%clk 0:00:04]} 1-0

[Event "December 12 Late 2023"]
[Site "https://www.chess.com"]
[Date "2023.12.12"]
[Round "2"]
[White "Burke, Paul"]
[Black "Mendes Aaron Reeve"]
[Result "0-1"]
[Board "77"]
[TimeControl "180+1"]
[WhiteFideId "2605767"]
[BlackFideId "25954938"]
[WhiteElo "1836"]
[BlackElo "2655"]
[WhiteTeam "CAN"]
[BlackTeam "CAN"]
[WhiteClock "0:00:12"]
[BlackClock "0:00:53"]

1. e4 {[%clk 0:03:00]}  c5 {[%clk 0:02:56]} 2. Nf3 {[%clk 0:02:59]}  d6 {[%clk 0:02:56]} 3. d4 {[%clk 0:02:59]}  cxd4 {[%clk 0:02:56]} 4. c3 {[%clk 0:02:59]}  dxc3 {[%clk 0:02:55]} 5. Nxc3 {[%clk 0:02:59]}  Nc6 {[%clk 0:02:55]} 6. Bc4 {[%clk 0:02:59]}  e6 {[%clk 0:02:55]} 7. O-O {[%clk 0:02:58]}  Nf6 {[%clk 0:02:55]} 8. Qe2 {[%clk 0:02:58]}  Be7 {[%clk 0:02:54]} 9. Rd1 {[%clk 0:02:58]}  Qa5 {[%clk 0:02:53]} 10. Bd2 {[%clk 0:02:54]}  Qh5 {[%clk 0:02:52]} 11. Bg5 {[%clk 0:02:38]}  Ne5 {[%clk 0:02:46]} 12. Bxf6 {[%clk 0:02:30]}  Nxf3+ {[%clk 0:02:43]} 13. Qxf3 {[%clk 0:02:26]}  Qxf3 {[%clk 0:02:42]} 14. gxf3 {[%clk 0:02:25]}  gxf6 {[%clk 0:02:42]} 15. Nb5 {[%clk 0:02:25]}  Kd7 {[%clk 0:02:21]} 16. f4 {[%clk 0:02:13]}  Rg8+ {[%clk 0:02:15]} 17. Kf1 {[%clk 0:02:09]}  Rg4 {[%clk 0:02:06]} 18. f5 {[%clk 0:01:41]}  Rxe4 {[%clk 0:01:47]} 19. fxe6+ {[%clk 0:01:40]}  fxe6 {[%clk 0:01:46]} 20. Bd3 {[%clk 0:01:40]}  Rh4 {[%clk 0:01:39]} 21. Nd4 {[%clk 0:01:38]}  a6 {[%clk 0:01:31]} 22. Nf3 {[%clk 0:01:37]}  Rh5 {[%clk 0:01:29]} 23. Rac1 {[%clk 0:01:18]}  b5 {[%clk 0:01:25]} 24. Be4 {[%clk 0:01:13]}  d5 {[%clk 0:01:25]} 25. Bd3 {[%clk 0:01:10]}  Bb7 {[%clk 0:01:23]} 26. a3 {[%clk 0:00:55]}  Rg8 {[%clk 0:01:17]} 27. b4 {[%clk 0:00:52]}  Rh3 {[%clk 0:01:15]} 28. Ke2 {[%clk 0:00:49]}  Bd6 {[%clk 0:01:13]} 29. Rg1 {[%clk 0:00:47]}  Re8 {[%clk 0:01:11]} 30. Rg7+ {[%clk 0:00:45]}  Re7 {[%clk 0:01:10]} 31. Rxe7+ {[%clk 0:00:45]}  Kxe7 {[%clk 0:01:11]} 32. Nd4 {[%clk 0:00:37]}  Rxh2 {[%clk 0:01:09]} 33. Nc6+ {[%clk 0:00:37]}  Kd7 {[%clk 0:01:09]} 34. Na5 {[%clk 0:00:35]}  Ba8 {[%clk 0:01:08]} 35. a4 {[%clk 0:00:30]}  Bxb4 {[%clk 0:01:05]} 36. Nb3 {[%clk 0:00:29]}  bxa4 {[%clk 0:01:04]} 37. Nc5+ {[%clk 0:00:29]}  Bxc5 {[%clk 0:01:03]} 38. Rxc5 {[%clk 0:00:29]}  Bc6 {[%clk 0:01:03]} 39. Bxa6 {[%clk 0:00:27]}  Kd6 {[%clk 0:01:03]} 40. Ra5 {[%clk 0:00:26]}  Rh4 {[%clk 0:01:02]} 41. Bd3 {[%clk 0:00:25]}  e5 {[%clk 0:01:01]} 42. Ra6 {[%clk 0:00:24]}  Rb4 {[%clk 0:01:00]} 43. Bxh7 {[%clk 0:00:21]}  Kc7 {[%clk 0:00:54]} 44. Ra7+ {[%clk 0:00:20]}  Bb7 {[%clk 0:00:54]} 45. Bg8 {[%clk 0:00:12]}  Kb6 {[%clk 0:00:53]} 0-1

[Event "December 12 Late 2023"]
[Site "https://www.chess.com"]
[Date "2023.12.12"]
[Round "2"]
[White "Chocenka, Dmitrijus"]
[Black "Xiong, Jeffery"]
[Result "0-1"]
[Board "78"]
[TimeControl "180+1"]
[WhiteFideId "12802336"]
[BlackFideId "2047640"]
[WhiteElo "2484"]
[BlackElo "3040"]
[WhiteTeam "LTU"]
[BlackTeam "USA"]
[WhiteClock "0:00:47"]
[BlackClock "0:01:56"]

1. e4 {[%clk 0:02:55]}  c5 {[%clk 0:03:00]} 2. Nf3 {[%clk 0:02:56]}  d6 {[%clk 0:03:00]} 3. d4 {[%clk 0:02:56]}  Nf6 {[%clk 0:03:01]} 4. Nc3 {[%clk 0:02:55]}  cxd4 {[%clk 0:03:01]} 5. Nxd4 {[%clk 0:02:55]}  a6 {[%clk 0:03:02]} 6. h3 {[%clk 0:02:54]}  e5 {[%clk 0:03:01]} 7. Nde2 {[%clk 0:02:54]}  h5 {[%clk 0:03:02]} 8. g3 {[%clk 0:02:54]}  Be6 {[%clk 0:03:01]} 9. Bg2 {[%clk 0:02:55]}  b5 {[%clk 0:03:00]} 10. a3 {[%clk 0:02:52]}  Nbd7 {[%clk 0:03:00]} 11. O-O {[%clk 0:02:52]}  Rc8 {[%clk 0:03:00]} 12. Be3 {[%clk 0:02:48]}  Be7 {[%clk 0:02:58]} 13. Qd2 {[%clk 0:02:37]}  Nb6 {[%clk 0:02:55]} 14. b3 {[%clk 0:02:37]}  Bd7 {[%clk 0:02:20]} 15. Nd5 {[%clk 0:02:23]}  Nbxd5 {[%clk 0:02:19]} 16. exd5 {[%clk 0:02:24]}  Bf5 {[%clk 0:02:19]} 17. Rfc1 {[%clk 0:02:11]}  Qd7 {[%clk 0:02:09]} 18. Kh2 {[%clk 0:02:08]}  Be4 {[%clk 0:02:09]} 19. c4 {[%clk 0:02:02]}  bxc4 {[%clk 0:01:59]} 20. Rxc4 {[%clk 0:01:59]}  Bxg2 {[%clk 0:01:59]} 21. Rxc8+ {[%clk 0:01:55]}  Qxc8 {[%clk 0:01:59]} 22. Kxg2 {[%clk 0:01:56]}  Qb7 {[%clk 0:01:59]} 23. Nc3 {[%clk 0:01:51]}  O-O {[%clk 0:01:59]} 24. b4 {[%clk 0:01:49]}  Rc8 {[%clk 0:01:59]} 25. Rd1 {[%clk 0:01:49]}  Rxc3 {[%clk 0:01:57]} 26. Qxc3 {[%clk 0:01:47]}  Nxd5 {[%clk 0:01:57]} 27. Rxd5 {[%clk 0:01:38]}  Qxd5+ {[%clk 0:01:58]} 28. Kh2 {[%clk 0:01:37]}  Qe6 {[%clk 0:01:56]} 29. a4 {[%clk 0:01:33]}  d5 {[%clk 0:01:57]} 30. Bc5 {[%clk 0:01:32]}  d4 {[%clk 0:01:57]} 31. Qd3 {[%clk 0:01:25]}  Bxc5 {[%clk 0:01:55]} 32. bxc5 {[%clk 0:01:25]}  Qd5 {[%clk 0:01:56]} 33. Qxa6 {[%clk 0:01:22]}  d3 {[%clk 0:01:57]} 34. c6 {[%clk 0:01:15]}  d2 {[%clk 0:01:56]} 35. c7 {[%clk 0:01:14]}  d1=Q {[%clk 0:01:56]} 36. c8=Q+ {[%clk 0:01:14]}  Kh7 {[%clk 0:01:56]} 37. Qf5+ {[%clk 0:00:47]}  g6 {[%clk 0:01:56]} 0-1

[Event "December 12 Late 2023"]
[Site "https://www.chess.com"]
[Date "2023.12.12"]
[Round "2"]
[White "Urbina Perez, Juan Antonio"]
[Black "Grabinsky, Aaron"]
[Result "0-1"]
[Board "80"]
[TimeControl "180+1"]
[WhiteFideId "2217368"]
[BlackFideId "2087090"]
[WhiteElo "2452"]
[BlackElo "2893"]
[WhiteTeam "ESP"]
[BlackTeam "USA"]
[WhiteClock "0:00:18"]
[BlackClock "0:01:34"]

1. d4 {[%clk 0:03:00]}  e6 {[%clk 0:03:00]} 2. c4 {[%clk 0:02:59]}  Nf6 {[%clk 0:03:00]} 3. Nf3 {[%clk 0:02:59]}  Bb4+ {[%clk 0:03:00]} 4. Nbd2 {[%clk 0:02:58]}  O-O {[%clk 0:03:00]} 5. a3 {[%clk 0:02:58]}  Be7 {[%clk 0:03:01]} 6. e4 {[%clk 0:02:58]}  d6 {[%clk 0:03:02]} 7. h4 {[%clk 0:02:57]}  Nfd7 {[%clk 0:03:03]} 8. h5 {[%clk 0:02:57]}  e5 {[%clk 0:03:03]} 9. h6 {[%clk 0:02:56]}  g6 {[%clk 0:03:03]} 10. dxe5 {[%clk 0:02:53]}  dxe5 {[%clk 0:03:00]} 11. Be2 {[%clk 0:02:50]}  a5 {[%clk 0:03:00]} 12. Nb1 {[%clk 0:02:49]}  Bf6 {[%clk 0:02:56]} 13. Be3 {[%clk 0:02:48]}  c6 {[%clk 0:02:57]} 14. Nc3 {[%clk 0:02:47]}  Na6 {[%clk 0:02:56]} 15. Qc2 {[%clk 0:02:46]}  Qe7 {[%clk 0:02:55]} 16. O-O-O {[%clk 0:02:42]}  Ndc5 {[%clk 0:02:54]} 17. Kb1 {[%clk 0:02:40]}  Re8 {[%clk 0:02:53]} 18. Nh2 {[%clk 0:02:24]}  Bg5 {[%clk 0:02:44]} 19. Bxg5 {[%clk 0:02:15]}  Qxg5 {[%clk 0:02:45]} 20. Nf3 {[%clk 0:02:16]}  Qe7 {[%clk 0:02:44]} 21. Nh4 {[%clk 0:02:11]}  Qg5 {[%clk 0:02:38]} 22. g3 {[%clk 0:02:08]}  Ne6 {[%clk 0:02:33]} 23. Nf3 {[%clk 0:02:07]}  Qf6 {[%clk 0:02:33]} 24. Na4 {[%clk 0:02:03]}  Nac5 {[%clk 0:02:28]} 25. Nxc5 {[%clk 0:01:52]}  Nxc5 {[%clk 0:02:28]} 26. Nh4 {[%clk 0:01:50]}  Be6 {[%clk 0:02:26]} 27. Rhf1 {[%clk 0:01:38]}  a4 {[%clk 0:02:20]} 28. f4 {[%clk 0:01:35]}  exf4 {[%clk 0:02:18]} 29. Rxf4 {[%clk 0:01:36]}  Qg5 {[%clk 0:02:18]} 30. Qc3 {[%clk 0:01:24]}  Qxh6 {[%clk 0:02:16]} 31. Bg4 {[%clk 0:01:14]}  Qg7 {[%clk 0:02:05]} 32. Bxe6 {[%clk 0:01:11]}  Nxe6 {[%clk 0:02:02]} 33. Qxg7+ {[%clk 0:01:04]}  Kxg7 {[%clk 0:02:02]} 34. Rf2 {[%clk 0:01:05]}  Nc5 {[%clk 0:02:01]} 35. Rdf1 {[%clk 0:01:00]}  Re7 {[%clk 0:02:01]} 36. e5 {[%clk 0:01:00]}  Rf8 {[%clk 0:02:00]} 37. Re2 {[%clk 0:00:53]}  Nd7 {[%clk 0:01:58]} 38. Nf3 {[%clk 0:00:52]}  Rfe8 {[%clk 0:01:57]} 39. Rfe1 {[%clk 0:00:51]}  h6 {[%clk 0:01:54]} 40. Kc2 {[%clk 0:00:52]}  g5 {[%clk 0:01:54]} 41. g4 {[%clk 0:00:50]}  Nc5 {[%clk 0:01:53]} 42. Kc3 {[%clk 0:00:48]}  Rd8 {[%clk 0:01:52]} 43. Nd4 {[%clk 0:00:46]}  Red7 {[%clk 0:01:45]} 44. Nf5+ {[%clk 0:00:44]}  Kg6 {[%clk 0:01:45]} 45. Kc2 {[%clk 0:00:37]}  Ne6 {[%clk 0:01:39]} 46. Kc1 {[%clk 0:00:34]}  Nf4 {[%clk 0:01:37]} 47. Re4 {[%clk 0:00:32]}  Nd3+ {[%clk 0:01:36]} 48. Kc2 {[%clk 0:00:31]}  Nxe1+ {[%clk 0:01:37]} 49. Rxe1 {[%clk 0:00:31]}  h5 {[%clk 0:01:37]} 50. Ng3 {[%clk 0:00:29]}  hxg4 {[%clk 0:01:37]} 51. Re2 {[%clk 0:00:28]}  Rd3 {[%clk 0:01:35]} 52. Ne4 {[%clk 0:00:28]}  Kf5 {[%clk 0:01:33]} 53. Nd6+ {[%clk 0:00:27]}  R8xd6 {[%clk 0:01:34]} 54. exd6 {[%clk 0:00:28]}  Rxd6 {[%clk 0:01:34]} 55. Kc3 {[%clk 0:00:18]}  g3 {[%clk 0:01:34]} 0-1

[Event "December 12 Late 2023"]
[Site "https://www.chess.com"]
[Date "2023.12.12"]
[Round "2"]
[White "Disconzi da Silva, Rodrigo"]
[Black "Mikaelyan, Arman"]
[Result "0-1"]
[Board "81"]
[TimeControl "180+1"]
[WhiteFideId "2100991"]
[BlackFideId "13304852"]
[WhiteElo "2474"]
[BlackElo "2841"]
[WhiteTeam "BRA"]
[BlackTeam "ARM"]
[WhiteClock "0:00:29"]
[BlackClock "0:00:35"]

1. d4 {[%clk 0:03:00]}  Nf6 {[%clk 0:02:58]} 2. c4 {[%clk 0:03:00]}  d6 {[%clk 0:02:59]} 3. Nc3 {[%clk 0:03:00]}  e5 {[%clk 0:02:59]} 4. Nf3 {[%clk 0:02:59]}  Nbd7 {[%clk 0:02:58]} 5. Bg5 {[%clk 0:02:52]}  h6 {[%clk 0:02:57]} 6. Bh4 {[%clk 0:02:52]}  Be7 {[%clk 0:02:56]} 7. e3 {[%clk 0:02:52]}  O-O {[%clk 0:02:56]} 8. Qc2 {[%clk 0:02:52]}  c6 {[%clk 0:02:56]} 9. Bd3 {[%clk 0:02:50]}  Re8 {[%clk 0:02:53]} 10. O-O-O {[%clk 0:02:50]}  Qc7 {[%clk 0:02:11]} 11. Kb1 {[%clk 0:02:50]}  a6 {[%clk 0:02:06]} 12. h3 {[%clk 0:02:49]}  b5 {[%clk 0:02:00]} 13. g4 {[%clk 0:02:45]}  b4 {[%clk 0:01:58]} 14. Ne4 {[%clk 0:02:44]}  Nxe4 {[%clk 0:01:55]} 15. Bxe4 {[%clk 0:02:44]}  Bxh4 {[%clk 0:01:54]} 16. Nxh4 {[%clk 0:02:44]}  Nf6 {[%clk 0:01:20]} 17. dxe5 {[%clk 0:02:39]}  Nxe4 {[%clk 0:01:18]} 18. Qxe4 {[%clk 0:02:38]}  Rxe5 {[%clk 0:01:15]} 19. Qd4 {[%clk 0:02:36]}  d5 {[%clk 0:00:56]} 20. cxd5 {[%clk 0:02:09]}  Rxd5 {[%clk 0:00:57]} 21. Qxb4 {[%clk 0:01:59]}  Rb8 {[%clk 0:00:57]} 22. Qc3 {[%clk 0:01:53]}  Be6 {[%clk 0:00:57]} 23. Nf3 {[%clk 0:01:51]}  Rdb5 {[%clk 0:00:57]} 24. Nd4 {[%clk 0:01:29]}  Rxb2+ {[%clk 0:00:54]} 25. Qxb2 {[%clk 0:01:29]}  Rxb2+ {[%clk 0:00:55]} 26. Kxb2 {[%clk 0:01:30]}  Bd5 {[%clk 0:00:55]} 27. Rhe1 {[%clk 0:01:28]}  Qb6+ {[%clk 0:00:52]} 28. Ka1 {[%clk 0:01:18]}  c5 {[%clk 0:00:49]} 29. Nc2 {[%clk 0:01:14]}  Be4 {[%clk 0:00:42]} 30. Rd2 {[%clk 0:01:07]}  Qa5 {[%clk 0:00:41]} 31. Red1 {[%clk 0:01:00]}  Kh7 {[%clk 0:00:41]} 32. Kb2 {[%clk 0:00:59]}  Bf3 {[%clk 0:00:41]} 33. Rd3 {[%clk 0:00:51]}  c4 {[%clk 0:00:38]} 34. Ra3 {[%clk 0:00:46]}  Qb5+ {[%clk 0:00:35]} 35. Kc1 {[%clk 0:00:47]}  Bxd1 {[%clk 0:00:35]} 36. Kxd1 {[%clk 0:00:47]}  c3 {[%clk 0:00:34]} 37. Rxc3 {[%clk 0:00:46]}  Qf1+ {[%clk 0:00:34]} 38. Kd2 {[%clk 0:00:39]}  Qxf2+ {[%clk 0:00:35]} 39. Kd3 {[%clk 0:00:39]}  Qf1+ {[%clk 0:00:35]} 40. Kd4 {[%clk 0:00:29]}  Qxh3 {[%clk 0:00:35]} 0-1

[Event "December 12 Late 2023"]
[Site "https://www.chess.com"]
[Date "2023.12.12"]
[Round "2"]
[White "Sai Krishna G V"]
[Black "Todev, Simeon"]
[Result "1-0"]
[Board "84"]
[TimeControl "180+1"]
[WhiteFideId "5028280"]
[BlackFideId "2925133"]
[WhiteElo "2701"]
[BlackElo "2326"]
[WhiteTeam "IND"]
[BlackTeam "BUL"]
[WhiteClock "0:00:12"]
[BlackClock "0:00:01"]

1. d4 {[%clk 0:03:00]}  d5 {[%clk 0:02:40]} 2. c4 {[%clk 0:02:55]}  c6 {[%clk 0:02:39]} 3. Nc3 {[%clk 0:02:56]}  Nf6 {[%clk 0:02:38]} 4. Nf3 {[%clk 0:02:57]}  e6 {[%clk 0:02:38]} 5. Bg5 {[%clk 0:02:56]}  Be7 {[%clk 0:02:35]} 6. e3 {[%clk 0:02:57]}  O-O {[%clk 0:02:36]} 7. Bd3 {[%clk 0:02:54]}  Nbd7 {[%clk 0:02:36]} 8. O-O {[%clk 0:02:54]}  h6 {[%clk 0:02:37]} 9. Bh4 {[%clk 0:02:54]}  b6 {[%clk 0:02:38]} 10. Qe2 {[%clk 0:02:53]}  Bb7 {[%clk 0:02:38]} 11. Rac1 {[%clk 0:02:53]}  Rc8 {[%clk 0:02:38]} 12. Rfd1 {[%clk 0:02:53]}  Qc7 {[%clk 0:02:33]} 13. e4 {[%clk 0:02:50]}  dxe4 {[%clk 0:02:30]} 14. Nxe4 {[%clk 0:02:50]}  c5 {[%clk 0:02:26]} 15. Bg3 {[%clk 0:02:39]}  Qd8 {[%clk 0:02:14]} 16. Nd6 {[%clk 0:02:22]}  Bxd6 {[%clk 0:02:12]} 17. Bxd6 {[%clk 0:02:22]}  Re8 {[%clk 0:02:08]} 18. dxc5 {[%clk 0:02:23]}  bxc5 {[%clk 0:02:06]} 19. Ne5 {[%clk 0:02:18]}  Qb6 {[%clk 0:02:03]} 20. Rc3 {[%clk 0:02:00]}  Nxe5 {[%clk 0:01:46]} 21. Bxe5 {[%clk 0:02:01]}  Qc6 {[%clk 0:01:43]} 22. f3 {[%clk 0:01:41]}  Rcd8 {[%clk 0:01:34]} 23. Bxf6 {[%clk 0:01:36]}  gxf6 {[%clk 0:01:34]} 24. Be4 {[%clk 0:01:37]}  Qc7 {[%clk 0:01:33]} 25. Bxb7 {[%clk 0:01:28]}  Qxb7 {[%clk 0:01:32]} 26. Rcd3 {[%clk 0:01:28]}  Rxd3 {[%clk 0:01:30]} 27. Rxd3 {[%clk 0:01:29]}  e5 {[%clk 0:01:13]} 28. Rb3 {[%clk 0:00:33]}  Qd7 {[%clk 0:01:06]} 29. Rd3 {[%clk 0:00:33]}  Qb7 {[%clk 0:01:06]} 30. Rd5 {[%clk 0:00:34]}  Qb6 {[%clk 0:00:42]} 31. Qd2 {[%clk 0:00:32]}  Kg7 {[%clk 0:00:38]} 32. Rd7 {[%clk 0:00:25]}  Re6 {[%clk 0:00:22]} 33. Qd5 {[%clk 0:00:15]}  Kg6 {[%clk 0:00:11]} 34. b3 {[%clk 0:00:15]}  Qb4 {[%clk 0:00:10]} 35. Qd3+ {[%clk 0:00:14]}  e4 {[%clk 0:00:06]} 36. fxe4 {[%clk 0:00:13]}  Qe1+ {[%clk 0:00:07]} 37. Qf1 {[%clk 0:00:14]}  Qe3+ {[%clk 0:00:05]} 38. Qf2 {[%clk 0:00:14]}  Qxe4 {[%clk 0:00:06]} 39. h3 {[%clk 0:00:14]}  Qe1+ {[%clk 0:00:05]} 40. Qxe1 {[%clk 0:00:12]}  Rxe1+ {[%clk 0:00:06]} 41. Kf2 {[%clk 0:00:13]}  Rc1 {[%clk 0:00:05]} 42. Rxa7 {[%clk 0:00:13]}  Kf5 {[%clk 0:00:06]} 43. Ra5 {[%clk 0:00:13]}  Kf4 {[%clk 0:00:06]} 44. g3+ {[%clk 0:00:12]}  Ke4 {[%clk 0:00:07]} 45. Rxc5 {[%clk 0:00:13]}  Rc2+ {[%clk 0:00:07]} 46. Ke1 {[%clk 0:00:13]}  Kf3 {[%clk 0:00:06]} 47. Rf5+ {[%clk 0:00:13]}  Kxg3 {[%clk 0:00:07]} 48. Rxf6 {[%clk 0:00:13]}  Rxa2 {[%clk 0:00:05]} 49. Rxf7 {[%clk 0:00:11]}  Rb2 {[%clk 0:00:05]} 50. Rb7 {[%clk 0:00:12]}  Kxh3 {[%clk 0:00:06]} 51. c5 {[%clk 0:00:12]}  h5 {[%clk 0:00:05]} 52. c6 {[%clk 0:00:13]}  h4 {[%clk 0:00:06]} 53. Kd1 {[%clk 0:00:12]}  Rg2 {[%clk 0:00:03]} 54. c7 {[%clk 0:00:12]}  Rg1+ {[%clk 0:00:03]} 55. Kd2 {[%clk 0:00:12]}  Rg2+ {[%clk 0:00:04]} 56. Kd3 {[%clk 0:00:13]}  Rg3+ {[%clk 0:00:05]} 57. Kd4 {[%clk 0:00:13]}  Rg4+ {[%clk 0:00:05]} 58. Kc3 {[%clk 0:00:11]}  Rg3+ {[%clk 0:00:02]} 59. Kb4 {[%clk 0:00:11]}  Rg4+ {[%clk 0:00:01]} 60. Ka3 {[%clk 0:00:12]} 1-0

[Event "December 12 Late 2023"]
[Site "https://www.chess.com"]
[Date "2023.12.12"]
[Round "2"]
[White "Copeland, Samuel"]
[Black "Narva, Mai"]
[Result "1-0"]
[Board "86"]
[TimeControl "180+1"]
[WhiteFideId "2007347"]
[BlackFideId "4500512"]
[WhiteElo "2320"]
[BlackElo "2628"]
[WhiteTeam "USA"]
[BlackTeam "EST"]
[WhiteClock "0:01:31"]
[BlackClock "0:00:43"]

1. e4 {[%clk 0:03:00]}  c5 {[%clk 0:02:58]} 2. Nf3 {[%clk 0:03:00]}  Nc6 {[%clk 0:02:58]} 3. d4 {[%clk 0:03:01]}  cxd4 {[%clk 0:02:59]} 4. Nxd4 {[%clk 0:03:01]}  Nf6 {[%clk 0:03:00]} 5. Nc3 {[%clk 0:03:00]}  e5 {[%clk 0:03:01]} 6. Ndb5 {[%clk 0:03:00]}  d6 {[%clk 0:03:01]} 7. Nd5 {[%clk 0:02:59]}  Nxd5 {[%clk 0:03:00]} 8. exd5 {[%clk 0:02:59]}  Nb8 {[%clk 0:03:01]} 9. g4 {[%clk 0:02:58]}  Be7 {[%clk 0:03:01]} 10. c4 {[%clk 0:02:53]}  Nd7 {[%clk 0:03:01]} 11. Nc3 {[%clk 0:02:51]}  Bg5 {[%clk 0:02:57]} 12. h4 {[%clk 0:02:50]}  Bxh4 {[%clk 0:02:51]} 13. Ne4 {[%clk 0:02:49]}  Be7 {[%clk 0:02:51]} 14. c5 {[%clk 0:02:49]}  Nxc5 {[%clk 0:02:48]} 15. Nxc5 {[%clk 0:02:49]}  dxc5 {[%clk 0:02:48]} 16. Bb5+ {[%clk 0:02:46]}  Bd7 {[%clk 0:02:48]} 17. Bc4 {[%clk 0:02:44]}  b5 {[%clk 0:02:45]} 18. Be2 {[%clk 0:02:38]}  Qb6 {[%clk 0:02:28]} 19. Be3 {[%clk 0:02:35]}  Qd6 {[%clk 0:02:25]} 20. Rc1 {[%clk 0:02:33]}  Rc8 {[%clk 0:02:22]} 21. Qc2 {[%clk 0:02:31]}  h6 {[%clk 0:02:05]} 22. g5 {[%clk 0:02:29]}  Qxd5 {[%clk 0:02:03]} 23. Rh4 {[%clk 0:02:21]}  Qg2 {[%clk 0:01:54]} 24. Bf1 {[%clk 0:02:11]}  Qf3 {[%clk 0:01:38]} 25. Be2 {[%clk 0:02:06]}  Qg2 {[%clk 0:01:29]} 26. Bf1 {[%clk 0:02:05]}  Qc6 {[%clk 0:01:30]} 27. a4 {[%clk 0:01:56]}  a6 {[%clk 0:01:28]} 28. axb5 {[%clk 0:01:54]}  axb5 {[%clk 0:01:29]} 29. Rd1 {[%clk 0:01:44]}  c4 {[%clk 0:01:27]} 30. Rh2 {[%clk 0:01:39]}  Qg6 {[%clk 0:01:00]} 31. Qd2 {[%clk 0:01:34]}  Bg4 {[%clk 0:00:53]} 32. Be2 {[%clk 0:01:32]}  Bxe2 {[%clk 0:00:43]} 33. Qd7+ {[%clk 0:01:31]} 1-0

[Event "December 12 Late 2023"]
[Site "https://www.chess.com"]
[Date "2023.12.12"]
[Round "2"]
[White "Hoffmann, Asa"]
[Black "Tari, Aryan"]
[Result "0-1"]
[Board "89"]
[TimeControl "180+1"]
[WhiteFideId "2001470"]
[BlackFideId "1510045"]
[WhiteElo "2395"]
[BlackElo "2863"]
[WhiteTeam "USA"]
[BlackTeam "NOR"]
[WhiteClock "0:00:17"]
[BlackClock "0:00:29"]

1. d4 {[%clk 0:02:45]}  Nf6 {[%clk 0:02:49]} 2. Bg5 {[%clk 0:02:44]}  Nc6 {[%clk 0:02:37]} 3. e3 {[%clk 0:02:43]}  d5 {[%clk 0:02:37]} 4. c4 {[%clk 0:02:42]}  Ne4 {[%clk 0:02:33]} 5. Bf4 {[%clk 0:02:42]}  Bf5 {[%clk 0:02:32]} 6. a3 {[%clk 0:02:32]}  e6 {[%clk 0:02:27]} 7. f3 {[%clk 0:02:32]}  Nf6 {[%clk 0:02:26]} 8. Nc3 {[%clk 0:02:30]}  Bd6 {[%clk 0:02:19]} 9. Bg3 {[%clk 0:02:21]}  O-O {[%clk 0:02:14]} 10. Bd3 {[%clk 0:02:21]}  Bxd3 {[%clk 0:02:13]} 11. Qxd3 {[%clk 0:02:21]}  Re8 {[%clk 0:02:01]} 12. O-O-O {[%clk 0:02:20]}  dxc4 {[%clk 0:02:00]} 13. Qxc4 {[%clk 0:02:19]}  a6 {[%clk 0:01:59]} 14. Nge2 {[%clk 0:02:19]}  Na5 {[%clk 0:01:57]} 15. Qd3 {[%clk 0:02:15]}  b5 {[%clk 0:01:56]} 16. e4 {[%clk 0:02:14]}  b4 {[%clk 0:01:51]} 17. Bxd6 {[%clk 0:02:08]}  cxd6 {[%clk 0:01:48]} 18. axb4 {[%clk 0:02:07]}  Nc6 {[%clk 0:01:48]} 19. b5 {[%clk 0:02:03]}  axb5 {[%clk 0:01:45]} 20. Qxb5 {[%clk 0:02:01]}  Qc7 {[%clk 0:01:45]} 21. Qd3 {[%clk 0:01:35]}  Reb8 {[%clk 0:01:43]} 22. Qb1 {[%clk 0:01:33]}  Na5 {[%clk 0:01:33]} 23. b4 {[%clk 0:01:24]}  Nc4 {[%clk 0:01:26]} 24. Rd3 {[%clk 0:01:22]}  Ra3 {[%clk 0:01:20]} 25. Rhd1 {[%clk 0:01:12]}  Qa7 {[%clk 0:01:14]} 26. Qc2 {[%clk 0:00:59]}  Ra1+ {[%clk 0:01:10]} 27. Nb1 {[%clk 0:00:58]}  Na3 {[%clk 0:00:55]} 28. Rxa3 {[%clk 0:00:57]}  Qxa3+ {[%clk 0:00:55]} 29. Kd2 {[%clk 0:00:54]}  Qxb4+ {[%clk 0:00:52]} 30. Ke3 {[%clk 0:00:53]}  d5 {[%clk 0:00:49]} 31. e5 {[%clk 0:00:51]}  Nd7 {[%clk 0:00:48]} 32. Nbc3 {[%clk 0:00:51]}  Ra3 {[%clk 0:00:47]} 33. Kf2 {[%clk 0:00:49]}  Qc4 {[%clk 0:00:40]} 34. Rc1 {[%clk 0:00:48]}  Rc8 {[%clk 0:00:40]} 35. Qd2 {[%clk 0:00:47]}  Qa6 {[%clk 0:00:39]} 36. Nb1 {[%clk 0:00:44]}  Rb3 {[%clk 0:00:36]} 37. Rxc8+ {[%clk 0:00:40]}  Qxc8 {[%clk 0:00:36]} 38. Nbc3 {[%clk 0:00:40]}  Nb6 {[%clk 0:00:35]} 39. Qc2 {[%clk 0:00:38]}  Rb4 {[%clk 0:00:33]} 40. Qa2 {[%clk 0:00:35]}  Nc4 {[%clk 0:00:32]} 41. Qa7 {[%clk 0:00:32]}  Rb2 {[%clk 0:00:31]} 42. Kg3 {[%clk 0:00:30]}  Ne3 {[%clk 0:00:30]} 43. h4 {[%clk 0:00:28]}  h5 {[%clk 0:00:30]} 44. Qe7 {[%clk 0:00:25]}  Nf5+ {[%clk 0:00:28]} 45. Kh2 {[%clk 0:00:17]}  Nxe7 {[%clk 0:00:29]} 0-1